[Event "Women"]
[Site "Tallinn, EE"]
[Date "2024.12.18"]
[Round "3.1"]
[White "Tsiganova, Monika"]
[Black "Brokko, Margit"]
[Result "0-1"]
[Board "2"]
[TimeControl "40/5400+30"]
[WhiteFideId "4500199"]
[BlackFideId "4501098"]
[WhiteTitle "WIM"]
[BlackTitle "WFM"]
[WhiteElo "2077"]
[BlackElo "1958"]
[WhiteTeam "EST"]
[BlackTeam "EST"]
[WhiteClock "0:11:42"]
[BlackClock "0:20:10"]
[Variant "Standard"]

1. d4 {[%clk 1:30:01]}  Nf6 {[%clk 1:28:22]} 2. c4 {[%clk 1:30:18]}  c5 {[%clk 1:28:39]} 3. d5 {[%clk 1:29:05]}  e6 {[%clk 1:28:58]} 4. Nc3 {[%clk 1:29:23]}  exd5 {[%clk 1:28:45]} 5. cxd5 {[%clk 1:29:43]}  g6 {[%clk 1:28:54]} 6. e4 {[%clk 1:29:12]}  d6 {[%clk 1:29:15]} 7. Bd3 {[%clk 1:28:31]}  Bg7 {[%clk 1:28:57]} 8. Nge2 {[%clk 1:28:22]}  O-O {[%clk 1:28:38]} 9. O-O {[%clk 1:28:34]}  Nbd7 {[%clk 1:26:32]} 10. h3 {[%clk 1:28:09]}  a6 {[%clk 1:23:32]} 11. a4 {[%clk 1:27:32]}  Rb8 {[%clk 1:23:29]} 12. Ng3 {[%clk 1:27:07]}  Qc7 {[%clk 1:20:10]} 13. f4 {[%clk 1:25:13]}  c4 {[%clk 1:19:40]} 14. Bc2 {[%clk 1:25:34]}  b5 {[%clk 1:19:19]} 15. axb5 {[%clk 1:25:42]}  axb5 {[%clk 1:19:43]} 16. Be3 {[%clk 1:20:38]}  Nc5 {[%clk 1:19:25]} 17. e5 {[%clk 1:16:19]}  Ne8 {[%clk 1:19:07]} 18. Nce4 {[%clk 0:56:07]}  Nxe4 {[%clk 1:09:25]} 19. Nxe4 {[%clk 0:42:22]}  dxe5 {[%clk 1:09:03]} 20. Bc5 {[%clk 0:24:37]}  f5 {[%clk 1:05:43]} 21. Bxf8 {[%clk 0:24:10]}  Bxf8 {[%clk 1:04:11]} 22. Ng5 {[%clk 0:19:37]}  e4 {[%clk 1:02:44]} 23. b3 {[%clk 0:19:35]}  c3 {[%clk 0:59:53]} 24. h4 {[%clk 0:18:20]}  h6 {[%clk 0:57:17]} 25. Nh3 {[%clk 0:18:44]}  Qc5+ {[%clk 0:57:33]} 26. Kh1 {[%clk 0:18:55]}  Nf6 {[%clk 0:56:56]} 27. Nf2 {[%clk 0:18:39]}  b4 {[%clk 0:56:27]} 28. Qe2 {[%clk 0:18:47]}  Nxd5 {[%clk 0:53:45]} 29. Nd1 {[%clk 0:19:07]}  Bd7 {[%clk 0:50:47]} 30. Qe1 {[%clk 0:12:24]}  Bb5 {[%clk 0:47:00]} 31. Rf2 {[%clk 0:12:42]}  Bg7 {[%clk 0:46:56]} 32. g3 {[%clk 0:13:03]}  Bd4 {[%clk 0:42:24]} 33. Rh2 {[%clk 0:13:23]}  Nf6 {[%clk 0:36:33]} 34. Nf2 {[%clk 0:12:56]}  e3 {[%clk 0:28:35]} 35. Nd3 {[%clk 0:12:36]}  Bc6+ {[%clk 0:27:59]} 36. Kg1 {[%clk 0:12:16]}  e2+ {[%clk 0:26:19]} 37. Nf2 {[%clk 0:12:06]}  Re8 {[%clk 0:24:37]} 38. Bd3 {[%clk 0:11:42]}  Ng4 {[%clk 0:20:10]} 0-1

[Event "Women"]
[Site "Tallinn, EE"]
[Date "2024.12.19"]
[Round "3.2"]
[White "Brokko, Margit"]
[Black "Tsiganova, Monika"]
[Result "0-1"]
[Board "2"]
[TimeControl "40/5400+30"]
[WhiteFideId "4501098"]
[BlackFideId "4500199"]
[WhiteTitle "WFM"]
[BlackTitle "WIM"]
[WhiteElo "1958"]
[BlackElo "2077"]
[WhiteTeam "EST"]
[BlackTeam "EST"]
[WhiteClock "0:45:44"]
[BlackClock "1:08:01"]
[Variant "Standard"]

1. e4 {[%clk 1:27:24]}  c5 {[%clk 1:24:46]} 2. Nc3 {[%clk 1:27:44]}  a6 {[%clk 1:24:50]} 3. g3 {[%clk 1:26:14]}  b5 {[%clk 1:25:10]} 4. Bg2 {[%clk 1:25:38]}  Bb7 {[%clk 1:25:34]} 5. d3 {[%clk 1:25:34]}  e6 {[%clk 1:25:44]} 6. Be3 {[%clk 1:23:30]}  Nf6 {[%clk 1:23:09]} 7. h3 {[%clk 1:21:01]}  Be7 {[%clk 1:22:57]} 8. f4 {[%clk 1:19:27]}  d5 {[%clk 1:22:39]} 9. e5 {[%clk 1:17:52]}  Nfd7 {[%clk 1:22:43]} 10. Qg4 {[%clk 1:11:33]}  O-O {[%clk 1:20:46]} 11. Nce2 {[%clk 1:07:53]}  Nc6 {[%clk 1:20:14]} 12. c3 {[%clk 1:01:10]}  d4 {[%clk 1:13:30]} 13. Bf2 {[%clk 0:50:59]}  Ncxe5 {[%clk 1:13:16]} 14. fxe5 {[%clk 0:50:48]}  Bxg2 {[%clk 1:13:25]} 15. Rh2 {[%clk 0:50:31]}  Nxe5 {[%clk 1:13:30]} 16. Qh5 {[%clk 0:48:58]}  Nxd3+ {[%clk 1:13:19]} 17. Kd2 {[%clk 0:49:20]}  dxc3+ {[%clk 1:08:42]} 18. Nxc3 {[%clk 0:45:44]}  Nf4+ {[%clk 1:08:01]} 0-1

[Event "Women"]
[Site "Tallinn, EE"]
[Date "2024.12.19"]
[Round "3.4"]
[White "Olde, Grete"]
[Black "Olde, Margareth"]
[Result "0-1"]
[Board "1"]
[TimeControl "900+3"]
[WhiteFideId "4503104"]
[BlackFideId "4503082"]
[WhiteTitle "WCM"]
[BlackTitle "WIM"]
[WhiteElo "2024"]
[BlackElo "2087"]
[WhiteTeam "EST"]
[BlackTeam "EST"]
[WhiteClock "0:00:10"]
[BlackClock "0:00:18"]
[Variant "Standard"]

1. e4 {[%clk 0:15:05]}  c5 {[%clk 0:15:06]} 2. Nf3 {[%clk 0:15:04]}  Nc6 {[%clk 0:15:08]} 3. Bb5 {[%clk 0:15:05]}  e6 {[%clk 0:15:10]} 4. Bxc6 {[%clk 0:15:07]}  bxc6 {[%clk 0:15:12]} 5. b3 {[%clk 0:15:09]}  e5 {[%clk 0:15:15]} 6. O-O {[%clk 0:14:42]}  d6 {[%clk 0:15:17]} 7. d3 {[%clk 0:14:14]}  Be7 {[%clk 0:15:08]} 8. Re1 {[%clk 0:13:50]}  f5 {[%clk 0:14:39]} 9. Nbd2 {[%clk 0:13:21]}  Nf6 {[%clk 0:14:14]} 10. c3 {[%clk 0:13:02]}  O-O {[%clk 0:13:30]} 11. h3 {[%clk 0:12:04]}  h6 {[%clk 0:12:31]} 12. Nf1 {[%clk 0:10:58]}  Qe8 {[%clk 0:11:28]} 13. Ng3 {[%clk 0:09:12]}  fxe4 {[%clk 0:08:32]} 14. dxe4 {[%clk 0:09:02]}  Nh5 {[%clk 0:07:32]} 15. Nxh5 {[%clk 0:07:34]}  Qxh5 {[%clk 0:07:33]} 16. Nh2 {[%clk 0:07:04]}  Qh4 {[%clk 0:06:31]} 17. Nf3 {[%clk 0:06:59]}  Qf6 {[%clk 0:06:21]} 18. Re3 {[%clk 0:06:48]}  Be6 {[%clk 0:05:54]} 19. Qe2 {[%clk 0:06:38]}  Qg6 {[%clk 0:05:40]} 20. Nh2 {[%clk 0:06:19]}  Bh4 {[%clk 0:05:30]} 21. Nf3 {[%clk 0:05:57]}  Be7 {[%clk 0:04:53]} 22. Nh2 {[%clk 0:05:58]}  Rf7 {[%clk 0:04:40]} 23. Rg3 {[%clk 0:05:47]}  Qh7 {[%clk 0:04:42]} 24. Ng4 {[%clk 0:05:38]}  Kh8 {[%clk 0:04:24]} 25. Nh2 {[%clk 0:04:49]}  Raf8 {[%clk 0:04:14]} 26. Rf3 {[%clk 0:04:47]}  Rxf3 {[%clk 0:03:47]} 27. Nxf3 {[%clk 0:04:49]}  Qg6 {[%clk 0:03:45]} 28. Kh2 {[%clk 0:04:18]}  Qh5 {[%clk 0:03:40]} 29. Ng1 {[%clk 0:02:27]}  Qxe2 {[%clk 0:03:42]} 30. Nxe2 {[%clk 0:02:30]}  Rxf2 {[%clk 0:03:44]} 31. Ng3 {[%clk 0:02:10]}  d5 {[%clk 0:03:05]} 32. Be3 {[%clk 0:01:43]}  Rc2 {[%clk 0:03:03]} 33. Rc1 {[%clk 0:01:04]}  Rxa2 {[%clk 0:02:57]} 34. b4 {[%clk 0:00:49]}  c4 {[%clk 0:02:05]} 35. Nf1 {[%clk 0:00:31]}  Bf6 {[%clk 0:01:24]} 36. Bc5 {[%clk 0:00:19]}  d4 {[%clk 0:00:51]} 37. cxd4 {[%clk 0:00:20]}  exd4 {[%clk 0:00:53]} 38. Kg1 {[%clk 0:00:22]}  Be5 {[%clk 0:00:36]} 39. Rd1 {[%clk 0:00:19]}  c3 {[%clk 0:00:22]} 40. Rc1 {[%clk 0:00:11]}  Bf4 {[%clk 0:00:19]} 41. Re1 {[%clk 0:00:10]}  c2 {[%clk 0:00:18]} 0-1

[Event "Women"]
[Site "Tallinn, EE"]
[Date "2024.12.19"]
[Round "3.4"]
[White "Brokko, Margit"]
[Black "Tsiganova, Monika"]
[Result "0-1"]
[Board "2"]
[TimeControl "900+3"]
[WhiteFideId "4501098"]
[BlackFideId "4500199"]
[WhiteTitle "WFM"]
[BlackTitle "WIM"]
[WhiteElo "1960"]
[BlackElo "1925"]
[WhiteTeam "EST"]
[BlackTeam "EST"]
[WhiteClock "0:01:36"]
[BlackClock "0:09:24"]
[Variant "Standard"]

1. e4 {[%clk 0:15:04]}  c5 {[%clk 0:15:05]} 2. Nc3 {[%clk 0:15:05]}  a6 {[%clk 0:15:07]} 3. g3 {[%clk 0:15:05]}  b5 {[%clk 0:15:09]} 4. Bg2 {[%clk 0:15:06]}  Bb7 {[%clk 0:15:10]} 5. d3 {[%clk 0:15:06]}  e6 {[%clk 0:15:09]} 6. Nh3 {[%clk 0:15:08]}  Nf6 {[%clk 0:13:01]} 7. O-O {[%clk 0:15:06]}  Be7 {[%clk 0:12:39]} 8. Re1 {[%clk 0:14:35]}  d6 {[%clk 0:11:41]} 9. Nf4 {[%clk 0:14:16]}  Qc7 {[%clk 0:11:42]} 10. d4 {[%clk 0:12:39]}  cxd4 {[%clk 0:11:40]} 11. Nce2 {[%clk 0:12:00]}  e5 {[%clk 0:11:39]} 12. Nd5 {[%clk 0:11:45]}  Nxd5 {[%clk 0:11:34]} 13. exd5 {[%clk 0:11:46]}  O-O {[%clk 0:11:33]} 14. f4 {[%clk 0:11:14]}  f5 {[%clk 0:11:30]} 15. Kh1 {[%clk 0:10:33]}  Nd7 {[%clk 0:11:30]} 16. fxe5 {[%clk 0:09:38]}  dxe5 {[%clk 0:11:29]} 17. Nxd4 {[%clk 0:09:28]}  Bb4 {[%clk 0:10:25]} 18. Ne6 {[%clk 0:08:58]}  Qd6 {[%clk 0:10:05]} 19. c3 {[%clk 0:08:45]}  Ba5 {[%clk 0:10:07]} 20. Nxf8 {[%clk 0:08:30]}  Rxf8 {[%clk 0:10:08]} 21. a4 {[%clk 0:08:04]}  Bb6 {[%clk 0:10:03]} 22. axb5 {[%clk 0:07:09]}  axb5 {[%clk 0:10:04]} 23. Qb3 {[%clk 0:06:34]}  f4 {[%clk 0:09:35]} 24. gxf4 {[%clk 0:05:52]}  exf4 {[%clk 0:09:36]} 25. Re6 {[%clk 0:05:20]}  Qc5 {[%clk 0:09:37]} 26. Qd1 {[%clk 0:04:54]}  f3 {[%clk 0:09:35]} 27. Be3 {[%clk 0:01:35]}  fxg2+ {[%clk 0:09:34]} 28. Kxg2 {[%clk 0:01:36]}  Qxd5+ {[%clk 0:09:24]} 0-1